fUSD/lending_fUSD_20260108
["ID","MTS","AMOUNT","RATE_DAILY","PERIOD"]
[401025402,1767888643810,-500.0,0.00017099,2]
[401025404,1767888643820,-250.0,0.00017099,2]
[401025406,1767888643829,-500.0,0.00017099,2]
[401025408,1767888643839,-500.0,0.00017099,2]
[401025410,1767888643848,-250.0,0.00017099,2]
[401025412,1767888643859,-500.0,0.00017099,2]
[401025414,1767888643869,-245.3952879,0.00017099,2]
[401025416,1767888643878,-500.0,0.00017099,2]
[401025418,1767888643887,-500.0,0.00017099,2]
[401025420,1767888643897,-2000.0,0.00017099,2]
[401025421,1767888643907,-500.0,0.00017099,2]
[401025423,1767888643917,-2000.0,0.00017099,2]
[401025426,1767888643927,-578.20924308,0.00017099,2]
[401025427,1767888643937,-500.0,0.00017099,2]
[401025429,1767888643947,-2000.0,0.00017099,2]
[401025432,1767888643957,-500.0,0.00017099,2]
[401025435,1767888643968,-2000.0,0.00017099,2]
[401025439,1767888643978,-620.0,0.00017099,2]
[401025440,1767888643988,-500.0,0.00017099,2]
[401025443,1767888643998,-500.0,0.00017099,2]
[401025444,1767888644008,-2000.0,0.00017099,2]
[401025447,1767888644018,-500.0,0.00017099,2]
[401025449,1767888644029,-1500.0,0.00017099,2]
[401025451,1767888644038,-500.0,0.00017099,2]
[401025454,1767888644048,-500.0,0.00017099,2]
[401025456,1767888644058,-260.34840278,0.00017099,2]
[401025458,1767888644067,-151.0,0.00017099,2]
[401025460,1767888644077,-500.0,0.00017099,2]
[401025463,1767888644087,-500.0,0.00017099,2]
[401025464,1767888644097,-500.0,0.00017099,2]
[401025466,1767888644107,-500.0,0.00017099,2]
[401025468,1767888644117,-500.0,0.00017099,2]
[401025470,1767888644128,-500.0,0.00017099,2]
[401025473,1767888644138,-500.0,0.00017099,2]
[401025474,1767888644148,-500.0,0.00017099,2]
[401025476,1767888644158,-500.0,0.00017099,2]
[401025478,1767888644167,-500.0,0.00017099,2]
[401025480,1767888644176,-500.0,0.00017099,2]
[401025482,1767888644186,-500.0,0.00017106,2]
[401025484,1767888644195,-500.0,0.00017106,2]
[401025486,1767888644205,-500.0,0.00017106,2]
[401025488,1767888644215,-500.0,0.00017106,2]
[401025490,1767888644224,-1000.0,0.00017112,2]
[401025492,1767888644234,-3362.12953677,0.00017118,2]
[401025494,1767888644243,-6453.0,0.00017133,2]
[401025496,1767888644253,-3417.6,0.00017154,2]
[401025498,1767888644263,-3417.6,0.00017275,2]
[401025500,1767888644272,-168.0,0.00017294,2]
[401025502,1767888644281,-157.72323008,0.00017299,2]
[401025504,1767888644291,-168.0,0.00017363,2]
[401025506,1767888644300,-3417.6,0.00017396,2]
[401025508,1767888644310,-693.34075979,0.000174,2]
[401025510,1767888644326,-5888.0,0.0001744,2]
[401025512,1767888644335,-168.0,0.0001746,2]
[401025514,1767888644345,-168.0,0.00017476,2]
[401025516,1767888644356,-2000.0,0.000175,2]
[401025518,1767888644365,-3000.0,0.00017502,2]
[401025520,1767888644375,-3417.6,0.00017517,2]
[401025522,1767888644384,-468.0,0.00017557,2]
[401025524,1767888644396,-500.0,0.00017561,2]
[401025526,1767888644406,-500.0,0.00017561,2]
[401025528,1767888644416,-150.0,0.00017561,2]
[401025530,1767888644426,-150.0,0.00017561,2]
[401025532,1767888644435,-150.0,0.00017561,2]
[401025534,1767888644445,-150.0,0.00017561,2]
[401025536,1767888644455,-153.65010095,0.00017561,2]
[401025538,1767888644466,-500.0,0.00017561,2]
[401025540,1767888644476,-152.0,0.00017611,5]
[401025542,1767888644485,-500.0,0.00017616,2]
[401025544,1767888644494,-500.0,0.00017616,2]
[401025546,1767888644504,-150.0,0.00017616,2]
[401025548,1767888644514,-150.0,0.00017616,2]
[401025550,1767888644524,-200.0,0.00017616,2]
[401025552,1767888644535,-500.0,0.00017616,2]
[401025554,1767888644545,-468.0,0.0001763,2]
[401025556,1767888644554,-468.0,0.00017636,2]
[401025558,1767888644564,-3417.6,0.00017638,2]
[401025560,1767888644573,-7551.57044864,0.0001764,2]
[401025562,1767888644583,-311.1,0.00017647,2]
[401025564,1767888644593,-151.0,0.00017647,2]
[401025566,1767888644603,-595.37131296,0.00017647,2]
[401025568,1767888644612,-151.0,0.00017647,2]
[401025570,1767888644622,-168.0,0.00017663,2]
[401025572,1767888644632,-500.0,0.00017671,2]
[401025574,1767888644642,-500.0,0.00017671,2]
[401025576,1767888644651,-154.16094674,0.00017671,2]
[401025578,1767888644662,-150.0,0.00017671,2]
[401025580,1767888644671,-500.0,0.00017671,2]
[401025582,1767888644681,-1000.0,0.00017709,2]
[401025585,1767888644692,-500.0,0.00017725,2]
[401025587,1767888644701,-396.98457547,0.00017725,2]
[401025589,1767888644711,-155.60141278,0.00017725,2]
[401025590,1767888644721,-500.0,0.00017725,2]
[401025593,1767888644731,-3417.6,0.00017758,2]
[401025594,1767888644741,-500.0,0.0001778,2]
[401025597,1767888644751,-500.0,0.0001778,2]
[401025598,1767888644761,-168.0,0.00017823,2]
[401025601,1767888644771,-1047.53522858,0.0001783,2]
[401025603,1767888644781,-500.0,0.00017835,2]
[401025604,1767888644791,-295.72412489,0.00017835,2]
[401025607,1767888644802,-25000.0,0.00017847,3]
[401025609,1767888644811,-25000.0,0.00017856,3]
[401025611,1767888644821,-25000.0,0.00017865,3]
[401025613,1767888644831,-10000.0,0.00017873,2]
[401025615,1767888644840,-25000.0,0.00017874,3]
[401025617,1767888644850,-3417.6,0.00017879,2]
[401025618,1767888644859,-25000.0,0.00017882,3]
[401025621,1767888644869,-481.3806178,0.0001789,2]
[401025623,1767888644879,-25000.0,0.00017891,3]
[401025625,1767888644889,-168.0,0.00017893,2]
[401025627,1767888644899,-500.0,0.00017899,2]
[401025629,1767888644909,-500.0,0.00017899,2]
[401025631,1767888644918,-500.0,0.00017899,2]
[401025633,1767888644928,-500.0,0.00017899,2]
[401025635,1767888644937,-500.41600195,0.00017899,2]
[401025637,1767888644947,-500.0,0.00017899,2]
[401025638,1767888644956,-500.0,0.00017899,2]
[401025641,1767888644967,-500.0,0.00017899,2]
[401025643,1767888644977,-500.0,0.00017899,2]
[401025645,1767888644987,-325.85735244,0.000179,2]
[401025647,1767888644998,-693.34075979,0.000179,2]
[401025649,1767888645008,-3362.12953677,0.000179,2]
[401025651,1767888645018,-25000.0,0.000179,3]
[401025653,1767888645028,-423.76529882,0.000179,2]
[401025655,1767888645038,-1383.62695824,0.000179,2]
[401025657,1767888645047,-190.04272048,0.000179,3]
[401025659,1767888645057,-168.0,0.00017917,2]
[401025661,1767888645067,-1000.0,0.0001797,2]
[401025663,1767888645076,-500.0,0.0001797,2]
[401025665,1767888645087,-1000.0,0.0001797,2]
[401025667,1767888645096,-500.0,0.0001797,2]
[401025669,1767888645107,-1000.0,0.0001797,2]
[401025671,1767888645116,-500.0,0.0001797,2]
[401025701,1767888645392,-1000.0,0.0001797,2]
[401025703,1767888645402,-500.0,0.0001797,2]
[401025705,1767888645412,-1000.0,0.0001797,2]
[401025707,1767888645422,-1000.0,0.0001797,2]
[401025709,1767888645431,-500.0,0.0001797,2]
[401025711,1767888645442,-500.0,0.0001797,2]
[401025713,1767888645454,-1000.0,0.0001797,2]
[401025715,1767888645464,-1000.0,0.0001797,2]
[401025717,1767888645474,-584.41347442,0.0001797,2]
[401025719,1767888645483,-1446.54474908,0.0001797,2]
[401025722,1767888645494,-8200.0,0.00017973,2]
[401025724,1767888645504,-500.0,0.00017973,2]
[401025726,1767888645513,-500.0,0.00017973,2]
[401025728,1767888645523,-500.0,0.00017973,2]
[401025730,1767888645532,-500.17178809,0.00017973,2]
[401025732,1767888645542,-500.0,0.00017973,2]
[401025734,1767888645551,-500.0,0.00017973,2]
[401025736,1767888645561,-150.0,0.00017973,2]
[401025738,1767888645571,-426.73386812,0.00017973,2]
[401025740,1767888645582,-150.49880534,0.00017973,2]
[401025742,1767888645591,-500.0,0.00017973,2]
[401025744,1767888645601,-501.18870733,0.00017973,2]
[401025746,1767888645611,-500.0,0.00017973,2]
[401025748,1767888645620,-385.16009683,0.00017973,2]
[401025750,1767888645630,-500.0,0.00017973,2]
[401025752,1767888645639,-500.0,0.00017973,2]
[401025754,1767888645650,-500.0,0.00017973,2]
[401025756,1767888645659,-338.62982115,0.00017973,2]
[401025758,1767888645669,-500.0,0.00017973,2]
[401025760,1767888645678,-500.0,0.00017973,2]
[401025762,1767888645688,-500.0,0.00017973,2]
[401025764,1767888645698,-500.0,0.00017973,2]
[401025766,1767888645708,-159.904,0.00017973,2]
[401025768,1767888645718,-500.0,0.00017973,2]
[401025770,1767888645728,-160.89060159,0.00017973,2]
[401025772,1767888645738,-500.0,0.00017973,2]
[401025774,1767888645748,-502.05451503,0.00017973,2]
[401025776,1767888645758,-500.0,0.00017973,2]
[401025778,1767888645767,-150.0,0.00017973,2]
[401025780,1767888645777,-500.0,0.00017982,2]
[401025782,1767888645787,-246.66180949,0.0001799,2]
[401025784,1767888645797,-246.66180949,0.0001799,2]
[401025786,1767888645807,-151.0,0.00017995,2]
[401025788,1767888645816,-500.0,0.00017996,2]
[401025790,1767888645827,-500.0,0.00017996,2]
[401025792,1767888645836,-151.0,0.00017997,2]
[401025794,1767888645846,-58819.9378684,0.00017998,2]
[401025797,1767888645861,-1959.575,0.00017998,2]
[401025799,1767888645871,-189.05,0.00017998,2]
[401025801,1767888645882,-272.405,0.00017998,2]
[401025803,1767888645892,-164.4226828,0.00017999,2]
[401025805,1767888645902,-150.0,0.00017999,2]
[401025807,1767888645911,-1006.1979,0.00017999,2]
[401025809,1767888645921,-500.0,0.00017999,2]
[401025811,1767888645931,-500.0,0.00017999,2]
[401025813,1767888645941,-500.0,0.00017999,2]
[401025815,1767888645951,-500.0,0.00017999,2]
[401025817,1767888645961,-500.0,0.00017999,2]
[401025819,1767888645971,-500.0,0.00017999,2]
[401025821,1767888645982,-500.0,0.00017999,2]
[401025823,1767888645992,-500.0,0.00017999,2]
[401025825,1767888646002,-500.0,0.00017999,2]
[401025827,1767888646012,-500.0,0.00017999,2]
[401025829,1767888646022,-500.0,0.00017999,2]
[401025831,1767888646031,-500.0,0.00017999,2]
[401025833,1767888646041,-500.0,0.00017999,2]
[401025835,1767888646051,-500.0,0.00017999,2]
[401025837,1767888646061,-500.0,0.00017999,2]
[401025839,1767888646071,-550.68929532,0.00017999,2]
[401025841,1767888646080,-500.0,0.00017999,2]
[401025843,1767888646090,-500.0,0.00017999,2]
[401025845,1767888646100,-321.10769147,0.00017999,2]
[401025847,1767888646110,-500.0,0.00017999,2]
[401025849,1767888646120,-500.0,0.00017999,2]
[401025851,1767888646129,-500.0,0.00017999,2]
[401025853,1767888646139,-500.0,0.00017999,2]
[401025855,1767888646149,-500.0,0.00017999,2]
[401025858,1767888646159,-500.0,0.00017999,2]
[401025860,1767888646168,-500.0,0.00017999,2]
[401025862,1767888646178,-500.0,0.00017999,2]
[401025864,1767888646187,-239.30650294,0.00017999,2]
[401025865,1767888646197,-500.0,0.00017999,2]
[401025866,1767888646207,-500.0,0.00017999,2]
[401025867,1767888646216,-500.0,0.00017999,2]
[401025868,1767888646229,-500.0,0.00017999,2]
[401025869,1767888646239,-500.0,0.00017999,2]
[401025871,1767888646249,-500.0,0.00017999,2]
[401025874,1767888646259,-596.87027646,0.00017999,2]
[401025876,1767888646269,-300.0,0.00017999,2]
[401025878,1767888646279,-300.0,0.00017999,2]
[401025880,1767888646289,-666.0,0.00017999,2]
[401025882,1767888646298,-300.0,0.00017999,2]
[401025884,1767888646308,-666.0,0.00017999,2]
[401025886,1767888646320,-500.0,0.00017999,2]
[401025888,1767888646330,-328.76989074,0.00017999,2]
[401025890,1767888646340,-300.0,0.00017999,2]
[401025892,1767888646350,-300.0,0.00017999,2]
[401025894,1767888646361,-666.0,0.00017999,2]
[401025896,1767888646371,-150.0,0.00017999,2]
[401025898,1767888646381,-500.0,0.00017999,2]
[401025900,1767888646392,-500.0,0.00017999,2]
[401025902,1767888646402,-500.0,0.00017999,2]
[401025904,1767888646413,-500.0,0.00017999,2]
[401025907,1767888646426,-500.0,0.00017999,2]
[401025909,1767888646436,-386.45682453,0.00017999,2]
[401025911,1767888646446,-300.0,0.00017999,2]
[401025913,1767888646457,-5970.77362135,0.00017999,2]
[401025915,1767888646467,-1969257.5114763,0.00018,2]
[401025917,1767888646477,-741203.47601904,0.00018,2]
[401025919,1767888646488,-105370.64318368,0.00018,2]
[401025921,1767888646498,-898946.12991313,0.00018,2]
[401025928,1767888646553,-7756.66554403,0.00018,2]
[401025975,1767888646998,-1.7e-07,0.00018,2]
[401025978,1767888647012,-752.9449998,0.00018,2]
[401026112,1767888648271,-1154.84389466,0.00011099,2]
[401026114,1767888648284,-1357.08908352,0.00011099,2]
[401026156,1767888648706,-5372.62913387,0.00011099,2]
[401026159,1767888648724,-616.40107695,0.00011099,2]
[401029622,1767888690707,150.0,0.00020641,120]
[401029627,1767888740191,331.22069032,0.00010327,2]
[401029628,1767888753765,472.98,7.722e-05,2]
[401029629,1767888754260,472.98,8.112e-05,2]
[401029630,1767888754335,472.98,8.503e-05,2]
[401029631,1767888754462,472.98,8.893e-05,2]
[401029632,1767888754633,472.98,9.284e-05,2]
[401029633,1767888754845,472.98,9.674e-05,2]
[401029634,1767888755368,472.98,0.00010064,2]
[401029704,1767888793628,-1941.17,0.00010427,2]
[401029705,1767888824531,167.68,8.606e-05,2]
[401029717,1767888940668,8129.3,0.000202,30]
[401029720,1767889094818,-250.0,0.00010427,2]
[401029721,1767889206596,235.0,0.00010427,2]
[401029722,1767889257875,9265.01,0.00010102,2]
[401029723,1767889257911,447.82,0.00010102,2]
[401029724,1767889365712,500.0,0.00010327,2]
[401029725,1767889376859,1000.0,0.00013,10]
[401029726,1767889426009,-220.81379354,0.00010439,2]
[401029728,1767889540543,978.83,0.00010249,2]
[401029729,1767889568717,999.0,0.00010959,3]
[401029730,1767889615100,-250.0,0.00010448,2]
[401029731,1767889615123,-472.98,0.00010455,2]
[401029732,1767889615145,-250.0,0.00010481,2]
[401029733,1767889615166,-75.0466099,0.00010492,2]
[401029739,1767889681848,-183.29048858,0.0001044,2]
[401029740,1767889681871,-183.29048858,0.00010497,2]
[401029741,1767889681894,-250.0,0.00010516,2]
[401029742,1767889681917,-611.41902284,0.0001054,2]
[401029743,1767889686245,4553.12,0.00010241,2]
[401029745,1767889695820,-7010.0,0.00010497,2]
[401029746,1767889706811,-29999.0,0.00010497,2]
[401029747,1767889742118,-300.0,0.00010495,2]
[401029748,1767889742153,-206.12354226,0.00010496,2]
[401029749,1767889742190,-466.53708482,0.00010496,2]
[401029750,1767889742228,-390.28321347,0.00010496,2]
[401029751,1767889742706,-387.85265784,0.00010496,2]
[401029752,1767889742743,-500.0,0.00010496,2]
[401029753,1767889742779,-500.0,0.00010496,2]
[401029754,1767889742813,-455.71446841,0.00010496,2]
[401029755,1767889742853,-500.0,0.00010496,2]
[401029756,1767889742896,-500.0,0.00010496,2]
[401029757,1767889742938,-500.0,0.00010496,2]
[401029758,1767889742981,-86.9880664,0.00010496,2]
[401029759,1767889745285,-413.0119336,0.00010496,2]
[401029760,1767889745326,-500.0,0.00010496,2]
[401029761,1767889745364,-500.0,0.00010496,2]
[401029762,1767889745404,-158.575367,0.00010496,2]
[401029774,1767889753331,-6430.35972536,0.00010497,2]
[401029788,1767889754033,-10000.01,0.00010497,2]
[401029789,1767889754054,-10000.01,0.00010497,2]
[401029790,1767889754095,-10000.01,0.00010497,2]
[401029791,1767889754374,-10000.01,0.00010497,2]
[401029792,1767889754704,-10000.01,0.00010497,2]
[401029828,1767889790549,-489.20930786,0.0001044,2]
[401029829,1767889790599,-9021.59138428,0.00010497,2]
[401029830,1767889790932,-10000.01,0.00010497,2]
[401029831,1767889791196,-10000.01,0.00010497,2]
[401029832,1767889791519,-10000.01,0.00010497,2]
[401029833,1767889791793,-10000.01,0.00010497,2]
[401029834,1767889792092,-10000.01,0.00010497,2]
[401029835,1767889792406,-10000.01,0.00010497,2]
[401029836,1767889792707,-10000.01,0.00010497,2]
[401029837,1767889793025,-10000.01,0.00010497,2]
[401029849,1767889831910,-240.15536196,0.0001044,2]
[401029851,1767889831920,-236.0,0.0001044,2]
[401029852,1767889831929,-200.0,0.00010485,2]
[401029853,1767889831939,-1200.0,0.00010496,2]
[401029854,1767889831948,-300.0,0.00010496,2]
[401029855,1767889831958,-150.0,0.00010496,2]
[401029856,1767889831968,-300.0,0.00010496,2]
[401029857,1767889831979,-263610.69608947,0.00010497,2]
[401029858,1767889831991,-1254.41808677,0.00010497,2]
[401029859,1767889832151,-1493.83764128,0.00010497,2]
[401029861,1767889838081,-1548.96320241,0.00010497,2]
[401029879,1767889838674,-640.39747628,0.00010497,2]
[401029882,1767889838686,-837.57754225,0.00010497,2]
[401029887,1767889838733,-9251.60654777,0.00010497,2]
[401030010,1767889840193,-2722.85338206,0.00010497,2]
[401030012,1767889840205,-9060.8,0.00010497,2]
[401030014,1767889840216,-1359.48,0.00010497,2]
[401030042,1767889840462,-525758.28892207,0.00010497,2]
[401030044,1767889840474,-2324.54681208,0.0001054,2]
[401030046,1767889840486,-1356.4829,0.0001054,2]
[401030048,1767889840495,-43223.99431559,0.0001055,2]
[401030050,1767889840505,-150.0,0.00010558,2]
[401030052,1767889840514,-160.52,0.00010597,2]
[401030054,1767889840523,-4987.2,0.00010597,2]
[401030056,1767889840532,-7213.28,0.00010597,2]
[401030058,1767889840541,-150.99,0.00010597,2]
[401030060,1767889840552,-9999.99,0.00010597,2]
[401030062,1767889840561,-999.99,0.00010597,2]
[401030064,1767889840571,-5441.69,0.00010597,2]
[401030066,1767889840581,-2639.33,0.00010597,2]
[401030068,1767889840590,-5527.66,0.00010597,2]
[401030071,1767889840600,-151.0,0.00010634,2]
[401030073,1767889840609,-151.0,0.00010634,2]
[401030075,1767889840620,-151.0,0.00010634,2]
[401030076,1767889840630,-151.0,0.00010634,2]
[401030079,1767889840640,-151.0,0.00010634,2]
[401030081,1767889840650,-151.0,0.00010634,2]
[401030082,1767889840659,-151.0,0.00010634,2]
[401030085,1767889840669,-151.0,0.00010634,2]
[401030087,1767889840678,-151.0,0.00010634,2]
[401030089,1767889840691,-151.0,0.00010634,2]
[401030091,1767889840701,-151.0,0.00010634,2]
[401030093,1767889840710,-151.0,0.00010634,2]
[401030095,1767889840720,-151.0,0.00010634,2]
[401030097,1767889840731,-151.0,0.00010634,2]
[401030099,1767889840741,-151.0,0.00010634,2]
[401030101,1767889840750,-151.0,0.00010634,2]
[401030103,1767889840759,-151.0,0.00010634,2]
[401030105,1767889840768,-151.0,0.00010634,2]
[401030107,1767889840778,-151.0,0.00010634,2]
[401030109,1767889840787,-151.0,0.00010634,2]
[401030111,1767889840796,-151.0,0.00010634,2]
[401030113,1767889840805,-151.0,0.00010634,2]
[401030115,1767889840814,-151.0,0.00010634,2]
[401030117,1767889840824,-151.0,0.00010634,2]
[401030119,1767889840833,-151.0,0.00010634,2]
[401030121,1767889840843,-151.0,0.00010634,2]
[401030123,1767889840853,-151.0,0.00010634,2]
[401030125,1767889840862,-151.0,0.00010634,2]
[401030127,1767889840871,-151.0,0.00010634,2]
[401030129,1767889840881,-151.0,0.00010634,2]
[401030131,1767889840890,-151.0,0.00010634,2]
[401030133,1767889840899,-500.0,0.00010634,2]
[401030135,1767889840909,-845.98,0.00010634,2]
[401030137,1767889840918,-1552.936,0.00010639,2]
[401030139,1767889840927,-167.212,0.00010639,2]
[401030141,1767889840937,-279.3063021,0.00010645,2]
[401030143,1767889840947,-166.66,0.00010771,2]
[401030145,1767889840957,-472.98,0.00010845,2]
[401030147,1767889840966,-6736.11137094,0.00010845,2]
[401030149,1767889840975,-845.98,0.00010908,2]
[401030151,1767889840986,-3409.24514091,0.00011099,2]
[401030153,1767889840995,-11844.70846231,0.00011099,2]
[401030155,1767889841005,-166.66,0.00011127,2]
[401030157,1767889841015,-845.98,0.00011182,2]
[401030159,1767889841024,-472.98,0.00011236,2]
[401030161,1767889841034,-151.0,0.00011248,2]
[401030163,1767889841044,-19527.72,0.00011251,2]
[401030165,1767889841054,-3409.24514084,0.00011269,2]
[401030167,1767889841063,-9999.99,0.00011281,2]
[401030171,1767889841083,-2502.08,0.00011281,2]
[401030173,1767889841093,-223.41786543,0.0001133,2]
[401030175,1767889841103,-11844.7084623,0.00011362,2]
[401030177,1767889841112,-845.98,0.00011456,2]
[401030179,1767889841121,-166.66,0.00011482,2]
[401030181,1767889841131,-195.0,0.00011484,2]
[401030183,1767889841140,-250.0,0.00011484,2]
[401030184,1767889841151,-195.0,0.00011493,2]
[401030187,1767889841162,-195.0,0.00011493,2]
[401030189,1767889841171,-255.0,0.00011525,2]
[401030191,1767889841181,-420.0,0.0001154,2]
[401030193,1767889841191,-172.0,0.0001154,2]
[401030195,1767889841200,-195.0,0.00011541,2]
[401030197,1767889841210,-250.0,0.00011541,2]
[401030199,1767889841220,-300.0,0.00011546,2]
[401030201,1767889841231,-300.0,0.00011546,2]
[401030203,1767889841240,-1680.0,0.00011546,2]
[401030205,1767889841250,-195.0,0.00011547,2]
[401030207,1767889841259,-250.0,0.00011547,2]
[401030209,1767889841269,-300.0,0.00011594,2]
[401030211,1767889841279,-300.0,0.00011594,2]
[401030213,1767889841288,-300.0,0.00011594,2]
[401030215,1767889841298,-472.98,0.00011626,2]
[401030217,1767889841307,-745.83,0.00011629,2]
[401030219,1767889841317,-845.98,0.0001173,2]
[401030221,1767889841326,-166.66,0.00011838,2]
[401030223,1767889841335,-279.30630209,0.00011854,2]
[401030225,1767889841344,-845.98,0.00012004,2]
[401030227,1767889841355,-472.98,0.00012017,2]
[401030229,1767889841364,-3409.24514084,0.00012098,2]
[401030231,1767889841373,-11844.7084623,0.00012179,2]
[401030233,1767889841383,-166.66,0.00012193,2]
[401030235,1767889841392,-845.98,0.00012278,2]
[401030237,1767889841401,-93501.85197798,0.000123,2]
[401030239,1767889841411,-472.98,0.00012407,2]
[401030241,1767889841420,-166.66,0.00012549,2]
[401030243,1767889841430,-846.00073216,0.00012552,2]
[401030246,1767889841439,-433.0,0.00012658,2]
[401030248,1767889841449,-587.0,0.00012687,2]
[401030250,1767889841459,-2351.0,0.000127,2]
[401030252,1767889841469,-164.25854781,0.00012779,2]
[401030254,1767889841478,-472.98,0.00012798,2]
[401030256,1767889841489,-3409.24514084,0.00012927,2]
[401030258,1767889841499,-11844.7084623,0.00012997,2]
[401030260,1767889841508,-279.30630209,0.00013063,2]
[401030262,1767889841518,-745.83,0.00013082,2]
[401030264,1767889841527,-240.15536194,0.0001317,2]
[401030266,1767889841537,-472.98,0.00013188,2]
[401030268,1767889841547,-160.52,0.00013246,2]
[401030270,1767889841557,-472.98,0.00013579,2]
[401030272,1767889841567,-500.0,0.00013698,2]
[401030274,1767889841576,-500.0,0.00013698,2]
[401030276,1767889841586,-502.10445571,0.00013698,2]
[401030278,1767889841596,-174.0797667,0.00013698,2]
[401030280,1767889841605,-500.0,0.00013698,2]
[401030282,1767889841619,-500.0,0.00013698,2]
[401030285,1767889841633,-500.0,0.00013698,2]
[401030287,1767889841644,-500.0,0.00013698,2]
[401030289,1767889841654,-500.0,0.00013698,2]
[401030291,1767889841664,-500.0,0.00013698,2]
[401030293,1767889841673,-500.0,0.00013698,2]
[401030295,1767889841683,-500.0,0.00013698,2]
[401030298,1767889841694,-500.0,0.00013698,2]
[401030300,1767889841704,-621.72362606,0.00013698,2]
[401030302,1767889841714,-500.0,0.00013698,2]
[401030304,1767889841724,-500.0,0.00013698,2]
[401030306,1767889841734,-500.0,0.00013698,2]
[401030308,1767889841744,-500.0,0.00013698,2]
[401030310,1767889841754,-502.28702111,0.00013698,2]
[401030312,1767889841764,-500.0,0.00013698,2]
[401030314,1767889841774,-500.0,0.00013698,2]
[401030316,1767889841784,-500.0,0.00013698,2]
[401030318,1767889841794,-200.0,0.00013698,2]
[401030320,1767889841804,-500.0,0.00013698,2]
[401030322,1767889841814,-500.0,0.00013698,2]
[401030324,1767889841823,-500.0,0.00013698,2]
[401030326,1767889841833,-500.0,0.00013698,2]
[401030328,1767889841844,-500.0,0.00013698,2]
[401030330,1767889841853,-525.03126034,0.00013698,2]
[401030333,1767889841864,-968.33,0.00013698,2]
[401030335,1767889841874,-968.33,0.00013698,2]
[401030337,1767889841884,-968.33,0.00013698,2]
[401030339,1767889841894,-968.33,0.00013698,2]
[401030341,1767889841904,-968.33,0.00013698,2]
[401030343,1767889841914,-500.0,0.00013698,2]
[401030345,1767889841924,-500.0,0.00013698,2]
[401030347,1767889841935,-500.0,0.00013698,2]
[401030349,1767889841945,-500.0,0.00013698,2]
[401030351,1767889841955,-500.0,0.00013698,2]
[401030353,1767889841964,-500.0,0.00013698,2]
[401030355,1767889841974,-500.0,0.00013698,2]
[401030357,1767889841985,-500.0,0.00013698,2]
[401030359,1767889841995,-500.0,0.00013698,2]
[401030361,1767889842005,-500.0,0.00013698,2]
[401030363,1767889842016,-500.0,0.00013698,2]
[401030366,1767889842030,-500.0,0.00013698,2]
[401030368,1767889842040,-500.0,0.00013698,2]
[401030370,1767889842050,-500.0,0.00013698,2]
[401030372,1767889842060,-500.0,0.00013698,2]
[401030374,1767889842070,-500.0,0.00013698,2]
[401030376,1767889842080,-500.0,0.00013698,2]
[401030378,1767889842090,-500.0,0.00013698,2]
[401030380,1767889842100,-500.0,0.00013698,2]
[401030382,1767889842110,-500.0,0.00013698,2]
[401030384,1767889842120,-500.0,0.00013698,2]